Cogmind - Beta 15 @@@ ROGUE MODE // 2025.08.04 @ 15:20:58 Player: OoferDoofums Result: Destroyed by S-10 Pest with Light Assault Rifle Performance ------------- Evolutions (2) 1000 Regions Visited (5) 1000 Robots Destroyed (23) 115 Value Destroyed (561) 561 Prototype IDs (1) 20 Alien Tech Used (0) 0 Bonus (0) 0 TOTAL SCORE: 2696 Bonus ------- None Cogmind --------- Core Integrity 0/550 Matter 265/300 Energy 99/100 System Corruption 20% Temperature Cool (0) Movement Core (100) Ox1 Location -8/Materials Parts ------- > --- POWER (1) -------- (None) > --- PROPULSION (3) --- (None) > --- UTILITY (5) ------ Small Storage Unit Improved Terrain Scan Processor > --- WEAPON (2) ------- (None) > --- INVENTORY (8) ---- (None) Peak State ------------ > --- POWER ------------ Reinforced Ion Engine > --- PROPULSION ------- Light Treads Light Treads > --- UTILITY ---------- Scrap Suit Improved Heat Sink Small Storage Unit Signal Interpreter > --- WEAPON ----------- Light Assault Rifle Datajack > --- INVENTORY -------- Heat Sink Disposable Heat Sink Experimental Sensor Array Improved Terrain Scan Processor Weapon Shielding Trap Extractor Grenade Launcher Mace [Rating: 21] Favorites ----------- Power Reinforced Ion Engine Engine Reinforced Ion Engine Power Core Light Nuclear Core Propulsion Light Treads Treads Light Treads Leg Aluminum Leg Utility Small Storage Unit Device Scrap Suit Storage Small Storage Unit Processor Signal Interpreter Protection Weapon Shielding Weapon EM Pulse Gun Energy Gun EM Pulse Gun Energy Cannon Ion Cannon Ballistic Gun Light Assault Rifle Launcher Grenade Launcher Impact Weapon Mace Special Melee Weapon Datajack Build | -11 -10 -10 -9 -9 -8 ------- Run | Yrd Mat Min Mat Min Mat Slots Evolved 4 | . . . 2 . 2 Power . | . . . . . . Propulsion 1 | . . . . . 1 Utility 3 | . . . 2 . 1 Weapon . | . . . . . . Parts Attached 28 | 7 1 . 3 6 11 Power 5 | 1 . . 1 2 1 Engine 4 | 1 . . 1 2 . Core 1 | . . . . . 1 Reactor . | . . . . . . Propulsion 4 | 2 . . . 1 1 Treads 3 | 2 . . . 1 . Leg 1 | . . . . . 1 Wheel . | . . . . . . Hover . | . . . . . . Flight . | . . . . . . Utility 12 | 1 1 . 2 1 7 Device 8 | . 1 . 2 1 4 Storage 1 | 1 . . . . . Processor 2 | . . . . . 2 Hackware . | . . . . . . Protection 1 | . . . . . 1 Artifact . | . . . . . . Weapon 7 | 3 . . . 2 2 Energy Gun 3 | 2 . . . 1 . Energy Cannon . | . . . . . . Ballistic Gun 1 | 1 . . . . . Ballistic Cannon . | . . . . . . Launcher 1 | . . . . . 1 Special Weapon . | . . . . . . Impact Weapon 1 | . . . . . 1 Slashing Weapon . | . . . . . . Piercing Weapon . | . . . . . . Special Melee Weapon 1 | . . . . 1 . Unidentified Prototypes 1 | . . . . . 1 Parts Lost 22 | . . 3 . 1 18 Power 3 | . . 1 . . 2 Propulsion 3 | . . . . . 3 Utility 9 | . . 1 . . 8 Weapon 7 | . . 1 . 1 5 Highest Loss Streak 9 | . . 3 . 1 9 To Critical Strikes . | . . . . . . Average Backups 6 | 1 3 6 5 7 6 Power . | . 1 1 . . . Propulsion . | . . . . . . Utility 3 | . . 2 2 5 4 Weapon 1 | . 1 2 2 2 . Tool/Special . | . . . . . . Unused Backups 3 | . . . . 3 . Power . | . . . . . . Propulsion . | . . . . . . Utility 1 | . . . . 1 . Weapon 2 | . . . . 2 . Tool/Special . | . . . . . . Average Slot Usage (%) 80 | . 92 97 84 87 59 Engine 10 | . 14 13 8 11 6 Treads 17 | . 28 28 22 22 3 Device 15 | . 7 13 21 22 12 Storage 11 | . 14 14 11 11 9 Processor 2 | . . . . . 9 Energy Gun 11 | . 28 26 11 7 . Ballistic Gun 5 | . . . 10 11 4 Impact Weapon 1 | . . . . . 5 Special Melee Weapon 1 | . . . . 3 2 Peak Build Rating 21 | 6 7 9 16 19 21 Average Rating 13 | 5 6 8 15 17 16 On Entrance 9 | . 6 7 6 16 19 Naked Turns . | . . . . . . Heaviest Build 28 | 14 15 15 18 24 28 Greatest Support 40 | 40 40 40 40 40 40 Greatest Overweight (x) 9 | 3 . . . . 9 Average Overweight (x) . | . . . . . 2 Largest Inventory Capacity 8 | 8 8 8 8 8 8 Average Capacity 7 | 7 8 8 8 8 8 Most Carried 8 | 2 4 8 8 8 8 Average Carried 6 | 1 3 7 5 7 6 Final Capacity 8 | 8 8 8 8 8 8 Final Carried 8 | 2 4 8 8 8 . Class Distribution -------------------- 100% | Mutant Dominant Class ---------------- Mutant | -10/Materials Mutant | -10/Mines Mutant | -9/Materials Mutant | -9/Mines Mutant | -8/Materials Resources | -11 -10 -10 -9 -9 -8 ----------- Run | Yrd Mat Min Mat Min Mat Matter Collected 504 | 270 10 . . 117 107 Remotely 10 | . 10 . . . . Salvage Created 744 | 98 45 217 . 162 222 Parts 37 | 1 4 17 . 10 5 Haulers Intercepted . | . . . . . . Recyclers Shooed . | . . . . . . Parts Field Recycled . | . . . . . . Retrieved Matter . | . . . . . . Parts Self-Destructed . | . . . . . . Prevented . | . . . . . . Kills | -11 -10 -10 -9 -9 -8 ------- Run | Yrd Mat Min Mat Min Mat Combat Hostiles Destroyed 20 | . 1 8 . 6 5 Melee 1 | . . . . . 1 Guns 14 | . 1 6 . 6 1 Cannons 2 | . . . . . 2 AOE 2 | . . 2 . . . Classes Destroyed 6 | 2 1 2 . . 1 Worker 1 | . . 1 . . . Tunneler 1 | 1 . . . . . Recycler 1 | 1 . . . . . Swarmer 10 | . . 6 . 4 . Grunt 8 | . 1 2 . 2 3 Hunter 2 | . . . . . 2 Best Kill Streak 6 | 2 1 3 . 6 1 Combat Bots Only 6 | . 1 3 . 6 1 Max Kills in Single Turn 2 | 1 1 2 . 1 1 Gunslinging . | . . . . . . Exploded 1 | . . 1 . . . Melee 1 | . . . . . 1 Uniques/NPCs Destroyed . | . . . . . . Combat | -11 -10 -10 -9 -9 -8 -------- Run | Yrd Mat Min Mat Min Mat Hostile Shots Fired 260 | . 6 29 . 54 171 Missed 62 | . 1 4 . 22 35 Hits 198 | . 5 25 . 32 136 Melee 16 | . . . . . 16 Projectile 182 | . 5 25 . 32 120 Critical Strikes 5 | . . . . . 5 Damage Taken 2621 | . 41 292 . 318 1970 Core 655 | . 8 64 . 33 550 Absorbed by Shields . | . . . . . . Redirected to Shielding 23 | . . . . . 23 Regen/Repaired (Parts) 3 | . . . . . 3 Core Remaining (%) 87 | 100 . 71 . 91 . Volleys Fired 103 | 3 1 18 . 21 60 Largest 2 | 2 2 2 . 2 1 Hottest 80 | 80 80 80 . 65 60 Shots Fired 120 | 6 2 27 . 25 60 Gun 97 | 6 2 27 . 25 37 Cannon 21 | . . . . . 21 Launcher 2 | . . . . . 2 Special . | . . . . . . Kinetic 58 | . . . . 21 37 Thermal 21 | . . . . . 21 Explosive 2 | . . . . . 2 Electromagnetic 39 | 6 2 27 . 4 . Robot Hit Streak 14 | 4 5 12 . 8 14 Robot Miss Streak 3 | . . 3 . 3 1 Penetration Max . | . . . . . . Secondary Targets 3 | . . 1 . 2 . Max Gunslinging Chain 1 | . . 1 . 1 . Shots Hit Robots 108 | 4 1 20 . 19 64 Core Hits 38 | 2 1 11 . 12 12 Critical Kills 1 | . . . . . 1 Critical Parts Destroyed 1 | . . . . . 1 Critical Strikes 3 | . . 1 . . 2 Meltdown 1 | . . . . . 1 Corrupt 1 | . . 1 . . . Smash 1 | . . . . . 1 Melee Attacks 16 | . . . . . 16 Impact 12 | . . . . . 12 Slashing . | . . . . . . Piercing . | . . . . . . Sneak Attacks . | . . . . . . Combat Hostiles . | . . . . . . Follow-up Attacks . | . . . . . . Damage Inflicted 1711 | 58 15 443 . 174 1021 Guns 719 | 58 15 271 . 174 201 Cannons 444 | . . . . . 444 Explosions 270 | . . 172 . . 98 Melee 278 | . . . . . 278 Ramming . | . . . . . . Kinetic 333 | . . . . 132 201 Thermal 616 | . . 172 . . 444 Explosive 98 | . . . . . 98 Electromagnetic 386 | 58 15 271 . 42 . Impact 278 | . . . . . 278 Slashing . | . . . . . . Piercing . | . . . . . . Highest Corruption 20 | . . . . . 20 Average Corruption 16 | . . . . . 16 Corruption Purged . | . . . . . . Corruption Blocked . | . . . . . . Effects 8 | . . . . . 8 Message Errors 1 | . . . . . 1 Matter Fused 1 | . . . . . 1 Heat Flow Errors 2 | . . . . . 2 Energy Discharges 1 | . . . . . 1 Data Loss (minor) 1 | . . . . . 1 Misdirections 2 | . . . . . 2 Overload Shots . | . . . . . . Overflow Damage 91 | . . 5 . . 86 Projectiles . | . . . . . . Explosions 7 | . . 5 . . 2 Melee 84 | . . . . . 84 Knockbacks 1 | . . . . . 1 Impact 1 | . . . . . 1 Kinetic . | . . . . . . Secondary . | . . . . . . Self-Inflicted Damage 85 | . . 29 . . 56 Shots 4 | . . 2 . . 2 Rammed . | . . . . . . Targets Rammed . | . . . . . . Kicked . | . . . . . . Crushed . | . . . . . . Highest Temperature 183 | 54 18 85 . 15 183 Average Temperature 36 | 29 12 37 . 5 41 Received Heat Transfer 597 | . . 87 . 96 414 Siege Activations . | . . . . . . Martial Activations . | . . . . . . Shielding Activations . | . . . . . . Robots Disrupted . | . . . . . . Combat Hostiles . | . . . . . . Robots Corrupted . | . . . . . . Combat Hostiles . | . . . . . . Parts Fried 2 | 1 . 1 . . . Impact Corruptions 3 | . . . . . 3 Robots Melted 1 | . . . . . 1 Combat Hostiles 1 | . . . . . 1 Parts Melted 2 | . . 1 . . 1 Heat Transferred 953 | . . 250 . . 703 Parts Sabotaged . | . . . . . . Parts Stolen . | . . . . . . Parts Stripped . | . . . . . . Power Chain Reactions 2 | . . 2 . . . Alert | -11 -10 -10 -9 -9 -8 ------- Run | Yrd Mat Min Mat Min Mat Maximum Alert Level . | . . . . . . Low Security (%) 100 | 100 100 100 100 100 100 Level 1 . | . . . . . . Level 2 . | . . . . . . Level 3 . | . . . . . . Level 4 . | . . . . . . Level 5 . | . . . . . . High Security . | . . . . . . Max Security . | . . . . . . Peak Influence 135 | 10 20 135 39 129 30 Initial 39 | . . . 39 . 27 Average 21 | . 2 55 12 29 6 Influence Increases 622 | 10 20 275 . 155 162 Destroy 0b10 Robot/C 400 | . 20 160 . 120 100 Destroy 0b10 Robot/NC 15 | 10 . 5 . . . Destroy Leader 70 | . . 30 . 20 20 Destroy Structure 17 | . . 5 . . 12 Lose Combat Pursuer 120 | . . 75 . 15 30 Influence Decreases 622 | 10 20 174 101 82 235 Entered New Map 108 | . . . 62 . 46 Time Decay 433 | 10 20 144 39 72 148 Lost Part 81 | . . 30 . 10 41 Squads Dispatched 1 | . . . . . 1 Investigation . | . . . . . . Extermination . | . . . . . . Reinforcement 1 | . . . . . 1 Assault . | . . . . . . Garrison . | . . . . . . Intercept . | . . . . . . Searches Triggered . | . . . . . . Construction Impeded 1 | . . . . . 1 Haulers Reinforced . | . . . . . . Active Scanning Responses . | . . . . . . Cargo Convoy Interrupts . | . . . . . . Stealth | -11 -10 -10 -9 -9 -8 --------- Run | Yrd Mat Min Mat Min Mat Distress Signals 5 | . 2 1 . . 2 Communications Jammed . | . . . . . . Distress Signals . | . . . . . . Times Spotted 40 | . 6 11 . 7 16 Peak Tracking Total 10 | . 4 3 . 6 10 Tactical Retreats 7 | . . 4 . 1 2 Traps | -11 -10 -10 -9 -9 -8 ------- Run | Yrd Mat Min Mat Min Mat Traps Triggered . | . . . . . . Indirectly . | . . . . . . Trap Hack Attempts . | . . . . . . Triggered . | . . . . . . Disarmed . | . . . . . . Reprogrammed . | . . . . . . Reused . | . . . . . . Traps Extracted . | . . . . . . Installed . | . . . . . . Triggered . | . . . . . . Machines | -11 -10 -10 -9 -9 -8 ---------- Run | Yrd Mat Min Mat Min Mat Machines Disabled . | . . . . . . Max in Single Turn . | . . . . . . Machines Repaired . | . . . . . . Machines Dismantled . | . . . . . . Machines Sabotaged . | . . . . . . Overloaded Fab Kills . | . . . . . . Hacking | -11 -10 -10 -9 -9 -8 --------- Run | Yrd Mat Min Mat Min Mat Machines Accessed 3 | . 1 1 . . 1 Terminals 3 | . 1 1 . . 1 Fabricators . | . . . . . . Repair Stations . | . . . . . . Recycling Units . | . . . . . . Scanalyzers . | . . . . . . Garrison Access . | . . . . . . Total Hacks 4 | . 1 2 . . 1 Successful 2 | . 1 1 . . . Failed 2 | . . 1 . . 1 Catastrophic . | . . . . . . Database Lockouts . | . . . . . . Manual . | . . . . . . Terminals 4 | . 1 2 . . 1 Fabricators . | . . . . . . Repair Stations . | . . . . . . Recycling Units . | . . . . . . Scanalyzers . | . . . . . . Garrison Access . | . . . . . . Terminal Hacks 2 | . 1 1 . . . Record 1 | . . 1 . . . Alert Level 1 | . 1 . . . . Fabricator Hacks . | . . . . . . Repair Station Hacks . | . . . . . . Recycling Unit Hacks . | . . . . . . Scanalyzer . | . . . . . . Garrison Access Hacks . | . . . . . . Unauthorized Hacks . | . . . . . . Terminals . | . . . . . . Fabricators . | . . . . . . Repair Stations . | . . . . . . Recycling Units . | . . . . . . Scanalyzers . | . . . . . . Garrison Access . | . . . . . . Data Cores Recovered . | . . . . . . Used . | . . . . . . Hacking Detections 2 | . . 1 . . 1 Full Trace Events . | . . . . . . Feedback Events . | . . . . . . Feedback Blocked . | . . . . . . Robot Schematics Acquired . | . . . . . . Robots Built . | . . . . . . Authchips . | . . . . . . Time . | . . . . . . Total Robot Build Rating . | . . . . . . Part Schematics Acquired . | . . . . . . Parts Built . | . . . . . . Authchips . | . . . . . . Time . | . . . . . . Total Part Build Rating . | . . . . . . Parts Repaired . | . . . . . . Time . | . . . . . . Parts Recycled . | . . . . . . Recycled Matter . | . . . . . . Retrieved Matter . | . . . . . . Retrieved Components . | . . . . . . Parts Scanalyzed . | . . . . . . Part Schematics Acquired . | . . . . . . Parts Damaged . | . . . . . . Bothacking | -11 -10 -10 -9 -9 -8 ------------ Run | Yrd Mat Min Mat Min Mat Used RIF Installer . | . . . . . . Robots Hacked . | . . . . . . Non-combat . | . . . . . . Combat . | . . . . . . Robot Hacks Applied . | . . . . . . Relay Couplers Released . | . . . . . . Fabnet Peak Effective % . | . . . . . . Robots Rewired . | . . . . . . Allies Hacked . | . . . . . . Hacks Repelled . | . . . . . . Allies | -11 -10 -10 -9 -9 -8 -------- Run | Yrd Mat Min Mat Min Mat Total Allies . | . . . . . . Largest Group . | . . . . . . Highest-Rated Group . | . . . . . . Highest-Rated Ally . | . . . . . . Total Orders . | . . . . . . Ally Attacks . | . . . . . . Total Damage . | . . . . . . Kills . | . . . . . . Allies Corrupted . | . . . . . . Allies Melted . | . . . . . . Intel | -11 -10 -10 -9 -9 -8 ------- Run | Yrd Mat Min Mat Min Mat Active Infowar (turns) 31 | . . . . . 31 Sensors 10 | . . . . . 10 Traps 21 | . . . . . 21 Robot Analysis Total . | . . . . . . Derelict Logs Recovered . | . . . . . . Drone Launches . | . . . . . . Drone Recoveries . | . . . . . . Exploration | -11 -10 -10 -9 -9 -8 ------------- Run | Yrd Mat Min Mat Min Mat Turns Passed 2061 | 90 195 393 155 576 652 Spaces Moved 964 | 45 102 197 92 319 209 Core 108 | 4 . . . . 104 Treads 805 | 41 102 197 92 319 54 Legs 51 | . . . . . 51 Wheels . | . . . . . . Hover . | . . . . . . Flight . | . . . . . . Fastest Speed 50 | 50 160 160 160 160 100 Average Speed 173 | 155 160 160 160 160 224 Slowest Speed 500 | 200 160 160 160 160 500 Overloaded Moves . | . . . . . . Propulsion Burnouts . | . . . . . . Robots Hopped . | . . . . . . Potential Cave-ins . | . . . . . . Cave-ins Triggered . | . . . . . . Exploration Rate (%) 28 | 4 26 48 14 61 18 Regions Visited 5 Branch Regions 2 Pre-discovered Areas 1 | . . . . 1 . Known Exits Taken . | . . . . . . Unknown Exits Taken 5 | 1 1 1 1 1 . Scrap Searched 1 | . . . . 1 . Spaces Dug . | . . . . . . Terrain Destroyed 16 | . . 5 . . 11 Melee . | . . . . . . Projectile 1 | . . . . . 1 AOE 15 | . . 5 . . 10 Terrain Rammed . | . . . . . . Walls Destroyed . | . . . . . . Machines Disabled . | . . . . . . Actions | -11 -10 -10 -9 -9 -8 --------- Run | Yrd Mat Min Mat Min Mat Total 1218 | 56 131 248 100 367 316 Wait 78 | . 26 31 . 9 12 Move 959 | 44 101 196 91 318 209 Hop . | . . . . . . Pick Up 18 | 2 2 3 5 4 2 Fast Attach 11 | 6 1 . . 2 2 Attach 15 | . . . 4 1 10 Detach 1 | . . . . . 1 Swap 6 | 1 . . . 3 2 Drop 10 | . . . . 9 1 Fire 103 | 3 1 18 . 21 60 Melee 16 | . . . . . 16 Ram 1 | . . . . . 1 Kick . | . . . . . . Crush . | . . . . . . Escape Stasis . | . . . . . . Rewire . | . . . . . . Trap . | . . . . . . Miscellaneous . | . . . . . . Route ------- -11/Scrapyard -10/Materials -10/Mines -9/Materials -9/Mines -8/Materials (discovered 1 exit: [*Sto]) History --------- Turn | Location | Event 41 | -11/Scrapyard | Discovered new exit (range 16) 91 | -11/Scrapyard | Entered Materials 276 | -10/Materials | Discovered new exit (range 6) 286 | -10/Materials | Entered Mines 317 | -10/Mines | Build established: Mutant 332 | -10/Mines | Found a Scrap Suit stashed away for nefarious purposes 341 | -10/Mines | Found Scrap Suit 375 | -10/Mines | Assembled infested the area 463 | -10/Mines | Found a damaged Exp. Sensor Array with a note attached 466 | -10/Mines | Found Prototype Device 612 | -10/Mines | Discovered new exit (range 15) 679 | -10/Mines | Entered Materials 679 | -9/Materials | Evolved 2 slots: Utility x2 682 | -9/Materials | Lost 3 parts (1p1u1w) 777 | -9/Materials | Discovered new exit (range 8) 834 | -9/Materials | Entered Mines 919 | -9/Mines | Found DCF Scrap (14 items) 1167 | -9/Mines | Learned location of Storage (-8) 1404 | -9/Mines | Discovered new exit (range 3) 1410 | -9/Mines | Entered Materials 1410 | -8/Materials | Evolved 2 slots: Propulsion x1, Utility x1 1773 | -8/Materials | Lost 4 parts (1n1u2w) 1817 | -8/Materials | Core integrity fell below 50% 1928 | -8/Materials | System corruption reached 10% 1947 | -8/Materials | Identified Exp. Sensor Array 1988 | -8/Materials | Lost 9 parts (1p6u2w) 2046 | -8/Materials | Discovered new exit (range 14) 2058 | -8/Materials | Core integrity fell below 20% 2062 | -8/Materials | Destroyed by S-10 Pest with Light Assault Rifle Last Messages --------------- System corrupted by crushing effect (+1). Knocked back. System corrupted: Heat flow error (+214). Acquired Lgt. Nuclear Core. System corrupted: Component data lost. W-25 Informer sends out distress signal. System corrupted: Matter fused (-10). W-25 Informer sends out distress signal. Atomic Centrifuge disabled. Jacked B-36 Bruiser... Command string: //4KXK No effect. K-01 Serf collects debris. EXIT=FOUND System corrupted: Heat flow error (+162). Datajack destroyed. Lgt. Nuclear Core destroyed. Trap Extractor destroyed. Critical hit (Burn: +37). S-10 Pest destroyed. Map ----- +----------------------------------------------------+ | ?????????????????????????????????????????????????? | | ?????????????????????????????????????????????????? | | ?????????????????????????????????????????????????? | | ?????????????????????????????????????????????????? | | ?????????????????????????????????????????????????? | | ?????????????????????????????????????????????????? | | ?????????????????????????????????????????????????? | | ????????????????? ?????????????????????????????? | | ????????????????? #????????????????????????????? | | ????????????????? #????????????????????????????? | | ????????????????# #????????????????????????????? | | ????????????????# #????????????????????????????? | | ????????????????# #????????????????????????????? | | ????????????????# #???????????? ???????????????? | | ????????????????# #??????????? ????????????????? | | ????????????????# +?????????? ????????????????? | | #??"""??????????# #?????????? ?????????????????? | | # """""??######## #????????? #?????????????????? | | ? """"???# # #???????? #?????????????????? | | ? """"???# # #???????? #?????????????????? | | ?? """???# """ # #??????? #?????????????????? | | ??? ???# """ # #??????# ##????????????????? | | ??##+##### ""ug ####### #????????????????? | | ??# + # k s #????????????????? | | ### ########### %s%Y< + "??????????????? | | + #?????????# b @ #????????????????? | | # #?????????########### #????????????????? | | # #?????????????????????? ##????????????????? | | #????????????????????????#?????????????????? | | #??????????????????????????????????????????? | | #??????????????????????????????????????????? | | #??????????????????????????????????????????? | | #??????????????????????????????????????????? | | #??????????????????????????????????????????? | | #??????????????????????????????????????????? | | #??????????????????????????????????????????? | | ######??????????????????????????????????????????? | | #???????????????????????????????????????????????? | | ###?????????????????????????????????????????????? | | ##########??????????????????????????????????????? | | # #??????????????????????????????????????? | | # #??????????????????????????????????????? | | # #??????????????????????????????????????? | | %# "" % #??????????????????????????????????????? | | /% """" #??????????????????????????????????????? | | # "" #??????????????????????????????????????? | | # """" #??????????????????????????????????????? | | # """ #??????????????????????????????????????? | | # #??????????????????????????????????????? | | ##########??????????????????????????????????????? | +----------------------------------------------------+ Best States ------------- Heat Dissipation 45 Coolant Potential 50 Energy Generation 14 Energy Capacity 265 Matter Stores 300 Matter Capacity 300 Sight Range 16 Robot Scan Range 20 Terrain Scan Density 110 Weapon Shielding 33 Evasion (%) 40 Recoil Reduction 2 Trap Extractor Capacity 4 Item Schematics ----------------- None Robot Schematics ------------------ None Fabricated ------------ Nothing Repaired ---------- Nothing Alien Tech Used ----------------- None Achievements -------------- None Challenges ------------ None Game ------ Seed PointySegregatorPlating Manual? 0 Play Time 00:26:28 Cumulative 27.9 hours Start 2025.08.04 @ 14:53:00 End 2025.08.04 @ 15:20:58 Sessions 1 Manual Loads 0 Difficulty Rogue Special Mode None Game No. 53 Rogue 53 Adventurer 0 Explorer 0 Win Type - Total 0 Types 0/0/0/0/0/0/0/0/0/0 Lore% 15 Gallery% 22 Achievement% 21 Wizard Run 0 Options --------- Layout 1 ASCII 0 Keyboard 0 Movement Mouse Keybinds 0 Fullscreen 1 Font 24/Smallcaps Map View 50x35 Zoom Use 0% Tactical HUD 0 Map Filters NONE Filters NONE Steam 1 RUN: c4a55251-529b-4192-86d1-71f15631ff5a